bitfinex-derivatives/quotes_BTCF0:USTF0_20250724
["timestamp","ask_amount","ask_price","bid_price","bid_amount"]
[1753371636012,0.2292586,118900.0,118890.0,1.06928943]
[1753371636213,0.8519786,118900.0,118890.0,0.65148041]
[1753371636413,0.8519786,118900.0,118890.0,1.06928943]
[1753371636612,1.020095,118900.0,118890.0,1.06928943]
[1753371637016,1.020095,118900.0,118890.0,0.65148041]
[1753371637216,1.020095,118900.0,118890.0,1.06928943]
[1753371637511,0.397375,118900.0,118890.0,1.06928943]
[1753371638211,1.020015,118900.0,118890.0,0.65148041]
[1753371638413,1.020015,118900.0,118890.0,1.06928943]
[1753371639614,1.019935,118900.0,118890.0,1.06928943]
[1753371639817,1.019935,118900.0,118890.0,0.65148041]
[1753371640414,1.019935,118900.0,118890.0,0.33174991]
[1753371640415,1.14596537,118900.0,118890.0,0.33174991]
[1753371640614,0.54631537,118900.0,118890.0,0.29934991]
[1753371640915,1.16879537,118900.0,118890.0,0.46748041]
[1753371641306,0.54631537,118900.0,118890.0,0.46748041]
[1753371641508,1.16875537,118900.0,118890.0,0.46748041]
[1753371642719,0.54631537,118900.0,118890.0,0.46748041]
[1753371642918,1.14931677,118900.0,118890.0,0.46748041]
[1753371643210,1.14931677,118900.0,118890.0,0.45498041]
[1753371643813,1.14931677,118900.0,118890.0,0.28684991]
[1753371644917,1.14931677,118900.0,118890.0,0.10315991]
[1753371645108,0.2712505,118890.0,118880.0,0.6217224]
[1753371645306,0.4066805,118890.0,118880.0,0.6217224]
[1753371645509,0.53352072,118890.0,118880.0,0.6217224]
[1753371646514,0.53352072,118890.0,118880.0,1.03953142]
[1753371646916,0.53352072,118890.0,118880.0,0.6217224]
[1753371647113,0.53352072,118890.0,118880.0,1.10708162]
[1753371647716,1.15564072,118890.0,118880.0,1.10708162]
[1753371647920,0.49629072,118890.0,118880.0,1.10708162]
[1753371648119,1.11841072,118890.0,118880.0,1.13654971]
[1753371648319,1.11837072,118890.0,118880.0,1.13654971]
[1753371648519,1.13269072,118890.0,118880.0,1.13654971]
[1753371649319,0.96456022,118890.0,118880.0,1.13654971]
[1753371649822,1.13265072,118890.0,118880.0,1.13654971]
[1753371650121,0.51061072,118890.0,118880.0,1.13654971]
[1753371650322,1.13265072,118890.0,118880.0,1.13654971]
[1753371650522,1.13261072,118890.0,118880.0,1.13654971]
[1753371650923,0.51061072,118890.0,118880.0,1.13654971]
[1753371651124,1.13257072,118890.0,118880.0,1.13654971]
[1753371651924,0.96444022,118890.0,118880.0,1.13654971]
[1753371652118,0.4486863,118910.0,118900.0,0.3168364]
[1753371652324,1.1126729,118910.0,118900.0,0.95544542]
[1753371652524,1.23879302,118910.0,118900.0,0.95544542]
[1753371652827,0.61683302,118910.0,118900.0,0.95544542]
[1753371653027,1.23871302,118910.0,118900.0,0.95544542]
[1753371653826,1.24071302,118910.0,118900.0,0.95544542]
[1753371654021,0.61983302,118910.0,118900.0,0.95544542]
[1753371654329,0.62484,118910.0,118900.0,1.56050894]
[1753371654625,0.6248,118910.0,118900.0,1.56050894]
[1753371654825,0.6248,118910.0,118900.0,1.14269992]
[1753371655122,0.3034919,118940.0,118910.0,0.0420226]
[1753371655322,0.44393487,118940.0,118930.0,0.89390983]
[1753371655527,1.06569487,118940.0,118930.0,0.89390983]
[1753371656029,0.72306747,118940.0,118930.0,0.89390983]
[1753371656223,0.89112737,118940.0,118930.0,0.89390983]
[1753371657021,0.10130747,118940.0,118930.0,0.89390983]
[1753371657329,0.72698747,118940.0,118930.0,0.537594]
[1753371657523,0.10530747,118940.0,118930.0,0.537594]
[1753371657729,0.72694747,118940.0,118930.0,0.537594]
[1753371657930,0.72494747,118940.0,118930.0,0.537594]
[1753371658229,0.07008747,118940.0,118930.0,0.537594]
[1753371658530,0.64181747,118940.0,118930.0,0.9550562]
[1753371659023,0.2690893,118960.0,118950.0,0.5375657]
[1753371659024,0.67143,118960.0,118950.0,0.5375657]
[1753371659326,0.34015,118970.0,118960.0,0.5375516]
[1753371659532,1.1297275,118970.0,118960.0,0.60596814]
[1753371660222,1.1297275,118970.0,118960.0,0.43793654]
[1753371660435,1.5481897,118970.0,118960.0,0.06841654]
[1753371660730,0.5081816,118960.0,118950.0,0.3197757]
[1753371660926,1.1297416,118960.0,118950.0,0.5375657]
[1753371661122,0.8696816,118960.0,118950.0,0.9550279]
[1753371661325,0.08021,118960.0,118950.0,0.5375657]
[1753371661526,0.31715,118970.0,118960.0,0.1680316]
[1753371661829,0.62344,118970.0,118960.0,0.98439353]
[1753371662035,0.002,118970.0,118960.0,0.98439353]
[1753371662630,0.002,118970.0,118960.0,1.67428997]
[1753371662827,0.002,118970.0,118960.0,1.05284997]
[1753371663031,0.002,118970.0,118960.0,0.63538777]
[1753371663223,0.002,118970.0,118960.0,1.3050283]
[1753371663429,0.68693194,119010.0,119000.0,0.4921151]
[1753371663629,1.23701194,119010.0,119000.0,0.7869822]
[1753371663830,1.2632939,119010.0,119000.0,0.5374951]
[1753371664031,0.6419739,119010.0,119000.0,0.36952]
[1753371664328,1.2632939,119010.0,119000.0,0.36952]
[1753371665040,0.4449425,118990.0,118980.0,0.14872]
[1753371665236,1.1132525,118990.0,118980.0,0.3167234]
[1753371665539,1.1132525,118990.0,118980.0,0.5375234]
[1753371665739,1.1132525,118990.0,118980.0,0.9549856]
[1753371665942,1.071253,118990.0,118980.0,0.5375234]
[1753371666140,1.071253,118990.0,118980.0,0.9549856]
[1753371666437,0.62132,118990.0,118980.0,0.9549856]
[1753371667334,0.1679762,119000.0,118990.0,0.3167092]
[1753371667539,0.6839676,119010.0,119000.0,0.5374951]
[1753371667840,1.3051676,119010.0,119000.0,0.5374951]
[1753371668933,1.3051676,119010.0,119000.0,0.36952]
[1753371669140,1.3051676,119010.0,119000.0,0.5374951]
[1753371669640,1.2630946,119010.0,119000.0,0.5374951]
[1753371669830,1.2210621,119010.0,119000.0,0.5374951]
[1753371670034,1.0111,119010.0,119000.0,0.5374951]
[1753371670237,0.5848055,119030.0,119020.0,0.37752]
[1753371670533,1.2510755,119030.0,119020.0,0.5454669]
[1753371670728,1.1670928,119030.0,119020.0,0.9629291]
[1753371671641,1.1670928,119030.0,119020.0,0.61211905]
[1753371671836,1.1670928,119030.0,119020.0,0.54401905]
[1753371672042,0.5460128,119030.0,119020.0,0.54401905]
[1753371672338,1.1670128,119030.0,119020.0,0.54401905]
[1753371672643,1.1680128,119030.0,119020.0,0.54401905]
[1753371672844,1.1690128,119030.0,119020.0,0.54401905]
[1753371673043,1.586475,119030.0,119020.0,0.11471215]
[1753371673249,1.29587145,119030.0,119020.0,0.23459905]
[1753371673445,1.29587145,119030.0,119020.0,0.30995553]
[1753371673742,1.29587145,119030.0,119020.0,0.64242553]
[1753371675540,0.67487145,119030.0,119020.0,0.64242553]
[1753371675746,1.29575145,119030.0,119020.0,0.64242553]
[1753371677639,1.29575145,119030.0,119020.0,1.05988773]
[1753371677640,0.74973865,119030.0,119020.0,1.05988773]
[1753371677943,0.62288,119030.0,119020.0,1.05988773]
[1753371678534,0.002,119030.0,119020.0,1.05988773]
[1753371678733,0.62284,119030.0,119020.0,1.05988773]
[1753371679152,0.62284,119030.0,119020.0,0.64242553]
[1753371679340,0.62184,119030.0,119020.0,0.64242553]
[1753371679540,0.62184,119030.0,119020.0,1.06088773]
[1753371680748,0.62084,119030.0,119020.0,1.06088773]
[1753371680945,0.62084,119030.0,119020.0,0.64342553]
[1753371681343,0.62084,119030.0,119020.0,1.06088773]
[1753371682954,0.62084,119030.0,119020.0,0.64342553]
[1753371683256,0.62084,119030.0,119020.0,1.06088773]
[1753371683749,0.2255,119040.0,119030.0,0.5004028]
[1753371683947,0.84626,119040.0,119030.0,0.962915]
[1753371684652,0.5460128,119030.0,119020.0,0.09895863]
[1753371684957,1.70961628,119030.0,119020.0,0.09895863]
[1753371685346,1.70961628,119030.0,119020.0,0.09795863]
[1753371685555,1.29215408,119030.0,119020.0,0.09695863]
[1753371685757,0.67143408,119030.0,119020.0,0.002]
[1753371685949,1.29215408,119030.0,119020.0,0.1575]
[1753371686149,1.29215408,119030.0,119020.0,0.1555]
[1753371686349,1.29215408,119030.0,119020.0,0.3234469]
[1753371686350,1.29315408,119030.0,119020.0,0.3234469]
[1753371686651,0.67243408,119030.0,119020.0,0.9629291]
[1753371686858,0.5470128,119030.0,119020.0,0.9629291]
[1753371687045,0.5480128,119030.0,119020.0,0.9629291]
[1753371688157,0.5480128,119030.0,119020.0,0.99263159]
[1753371688349,0.5470128,119030.0,119020.0,0.99263159]
[1753371688855,0.5470128,119030.0,119020.0,0.641372]
[1753371689056,0.5460128,119030.0,119020.0,0.641372]
[1753371690251,0.37808,119030.0,119020.0,1.0588342]
[1753371690448,0.5879884,119040.0,119030.0,0.5454528]
[1753371690651,0.5879884,119040.0,119030.0,0.962915]
[1753371690955,0.37808,119040.0,119030.0,0.962915]
[1753371691148,0.5459987,119040.0,119030.0,0.962915]
[1753371691352,1.1833014,119050.0,119040.0,0.3218387]
[1753371691553,1.2926514,119050.0,119040.0,0.5454387]
[1753371691754,1.2926514,119050.0,119040.0,0.4773387]
[1753371692060,1.2926514,119050.0,119040.0,0.1679187]
[1753371693055,1.2506718,119050.0,119040.0,0.3234187]
[1753371693356,1.2686508,119050.0,119040.0,0.5454387]
[1753371694861,1.2686508,119050.0,119040.0,0.4773387]
[1753371695059,1.2686508,119050.0,119030.0,0.7250233]
[1753371695262,0.5460128,119030.0,119020.0,0.66439013]
[1753371695461,1.1666528,119030.0,119020.0,0.73782013]
[1753371695662,0.99872,119030.0,119020.0,1.20334233]
[1753371695863,1.1666528,119030.0,119020.0,1.20334233]
[1753371696361,0.2255,119040.0,119030.0,0.5189653]
[1753371696565,0.6206,119040.0,119030.0,0.5609476]
[1753371696861,0.37808,119050.0,119040.0,0.4349887]
[1753371697069,0.37808,119050.0,119040.0,0.9629009]
[1753371697264,0.99868,119050.0,119040.0,0.9629009]
[1753371697563,0.7138,119050.0,119040.0,0.9629009]
[1753371697767,0.66861,119050.0,119040.0,0.9629009]
[1753371698263,1.48478,119060.0,119050.0,0.1679046]
[1753371698463,1.48478,119060.0,119050.0,0.9628868]
[1753371698464,0.17255958,119060.0,119050.0,0.9628868]
[1753371698670,0.01801958,119060.0,119050.0,0.9628868]
[1753371699675,0.01901958,119060.0,119050.0,0.5454246]
[1753371699873,0.001,119060.0,119050.0,0.9628868]
[1753371700076,0.02002747,119060.0,119050.0,0.9628868]
[1753371700772,0.24225,119090.0,119080.0,0.5383923]
[1753371700970,0.01803521,119090.0,119080.0,0.9558545]
[1753371701178,0.18588341,119090.0,119080.0,0.9558545]
[1753371701376,0.57761341,119090.0,119080.0,0.37053]
[1753371701573,0.5595923,119080.0,119070.0,0.30078]
[1753371701778,0.5596064,119070.0,119060.0,0.55715494]
[1753371701980,0.57764161,119070.0,119060.0,0.55715494]
[1753371702983,0.5596064,119070.0,119060.0,0.55715494]
[1753371703682,0.5596064,119070.0,119060.0,0.55815494]
[1753371704376,0.5596064,119070.0,119060.0,0.55915494]
[1753371704576,0.5596064,119070.0,119060.0,0.58523568]
[1753371704773,0.5624561,119110.0,119090.0,0.1590311]
[1753371704978,1.1498514,119110.0,119100.0,0.22233]
[1753371705179,0.4036341,119100.0,119090.0,0.40856288]
[1753371705477,0.4036341,119100.0,119090.0,0.40856328]
[1753371705781,1.0239141,119100.0,119090.0,0.40856328]
[1753371705985,1.0239141,119100.0,119090.0,0.47490689]
[1753371706381,0.85808,119100.0,119090.0,0.47490689]
[1753371706584,1.0259141,119100.0,119090.0,0.47490689]
[1753371707287,0.4056341,119100.0,119090.0,0.47490689]
[1753371707480,1.0259141,119100.0,119090.0,0.47490689]
[1753371707680,1.4433763,119100.0,119090.0,0.08472869]
[1753371707881,1.15235864,119100.0,119090.0,0.08472869]
[1753371708184,0.68800864,119100.0,119090.0,0.25257689]
[1753371708382,1.31020864,119100.0,119090.0,0.25257689]
[1753371708583,1.31020864,119100.0,119090.0,0.43654689]
[1753371708785,1.31020864,119100.0,119090.0,0.28396689]
[1753371709089,1.31020864,119100.0,119090.0,0.25257689]
[1753371709387,1.31016864,119100.0,119090.0,0.40515689]
[1753371709688,1.31016864,119100.0,119090.0,0.57732689]
[1753371710081,0.69000864,119100.0,119090.0,0.57732689]
[1753371710288,1.31016864,119100.0,119090.0,0.57732689]
[1753371710788,1.31016864,119100.0,119090.0,0.62310689]
[1753371711786,1.14233454,119100.0,119090.0,1.04056909]
[1753371711988,1.31016864,119100.0,119090.0,1.04056909]
[1753371712189,0.69000864,119100.0,119090.0,1.04056909]
[1753371712388,1.31008864,119100.0,119090.0,0.62310689]
[1753371714685,1.31008864,119100.0,119090.0,0.55335689]
[1753371714880,1.31008864,119100.0,119090.0,0.25257689]
[1753371715191,1.30996864,119100.0,119090.0,0.62310689]
[1753371715589,1.30996864,119100.0,119090.0,0.25257689]
[1753371716294,0.69000864,119100.0,119090.0,0.25257689]
[1753371716487,1.30992864,119100.0,119090.0,0.25257689]
[1753371717291,0.69000864,119100.0,119090.0,0.25257689]
[1753371717490,1.30992864,119100.0,119090.0,0.25257689]
[1753371717686,1.30992864,119100.0,119090.0,0.23419181]
[1753371717892,1.72739084,119100.0,119090.0,0.23419181]
[1753371718596,1.72739084,119100.0,119090.0,0.06634361]
[1753371718796,1.72739084,119100.0,119090.0,0.1678482]
[1753371718990,0.3237782,119090.0,119080.0,0.2517808]
[1753371719199,0.5595782,119090.0,119080.0,0.31921127]
[1753371719696,0.5595782,119090.0,119080.0,0.42447127]
[1753371720096,0.5605782,119090.0,119080.0,0.42447127]
[1753371720501,0.5615782,119090.0,119080.0,0.42447127]
[1753371720696,0.9790404,119090.0,119080.0,0.06743047]
[1753371720893,0.3237922,119080.0,119070.0,0.04516333]
[1753371721093,0.5596063,119070.0,119060.0,0.47030177]
[1753371721998,0.5596063,119070.0,119060.0,1.08328397]
[1753371721999,0.39173,119070.0,119060.0,1.08328397]
[1753371722199,0.31678,119070.0,119060.0,1.10787064]
[1753371722398,0.4101263,119070.0,119060.0,0.69040844]
[1753371722600,0.5596063,119070.0,119060.0,0.69140844]
[1753371722804,0.5596063,119070.0,119060.0,0.62265844]
[1753371723504,0.5596063,119070.0,119060.0,0.69240844]
[1753371723801,0.5596063,119070.0,119060.0,0.75979188]
[1753371724503,0.5596063,119070.0,119060.0,0.69004188]
[1753371725098,0.5596063,119070.0,119060.0,0.26334528]
[1753371725099,0.9770685,119070.0,119060.0,0.26334528]
[1753371725598,0.9770685,119070.0,119060.0,0.09546418]
[1753371725996,0.5596063,119070.0,119060.0,0.09546418]
[1753371726303,0.5596063,119070.0,119060.0,0.26335458]
[1753371726504,0.9770685,119070.0,119060.0,0.26335458]
[1753371726702,0.5596063,119070.0,119060.0,0.26335458]
[1753371726902,0.9770685,119070.0,119060.0,0.09446418]
[1753371727098,0.9770685,119070.0,119060.0,0.26235458]
[1753371727703,0.5596063,119070.0,119060.0,0.26235458]
[1753371727898,0.5596063,119070.0,119060.0,0.09446418]
[1753371728107,0.9770685,119070.0,119060.0,0.09446418]
[1753371728306,1.10222553,119070.0,119060.0,0.09446418]
[1753371729408,1.10222553,119070.0,119060.0,0.06838344]
[1753371729798,1.27020153,119070.0,119060.0,0.06738344]
[1753371730001,0.3217245,119050.0,119040.0,0.3306982]
[1753371730209,1.1638945,119050.0,119040.0,0.3306982]
[1753371730709,1.1638945,119050.0,119040.0,0.35610798]
[1753371731008,1.1638945,119050.0,119040.0,0.29589021]
[1753371731409,1.1638945,119050.0,119040.0,0.27727648]
[1753371732611,1.1638945,119050.0,119040.0,0.34614644]
[1753371733107,0.419619,119040.0,119030.0,0.2479028]
[1753371733409,0.419619,119040.0,119030.0,0.3598228]
[1753371733410,0.58807058,119040.0,119030.0,0.3598228]
[1753371733612,0.69666058,119040.0,119030.0,0.19189]
[1753371733807,1.11412278,119040.0,119030.0,0.04745]
[1753371734010,0.4795669,119020.0,119010.0,0.4983295]
[1753371734206,1.0992069,119020.0,119010.0,0.4983295]
[1753371734407,1.0992069,119020.0,119010.0,0.52446652]
[1753371734609,1.0992069,119020.0,119010.0,0.57191652]
[1753371735315,1.0992069,119020.0,119010.0,0.63825939]
[1753371735504,1.0992069,119020.0,119010.0,0.64025939]
[1753371735707,1.0992069,119020.0,119010.0,1.05772159]
[1753371735908,1.0992069,119020.0,119010.0,0.64025939]
[1753371736415,1.0992069,119020.0,119010.0,0.64325939]
[1753371738712,0.2322,119020.0,119010.0,1.06072159]
[1753371738913,0.61968,119020.0,119010.0,1.06072159]
[1753371739112,0.7876269,119020.0,119010.0,0.64325939]
[1753371739313,0.8962169,119020.0,119010.0,1.06072159]
[1753371739512,1.0885469,119020.0,119010.0,1.06072159]
[1753371739705,1.0885469,119020.0,119010.0,0.64325939]
[1753371740814,1.5126991,119020.0,119010.0,0.17744989]
[1753371741220,1.5126991,119020.0,119010.0,0.31289089]
[1753371741419,1.5126991,119020.0,119010.0,0.31273346]
[1753371742521,1.5126991,119020.0,119010.0,0.14477246]
[1753371742710,1.5126991,119020.0,119010.0,0.09732246]
[1753371742909,1.63837442,119020.0,119010.0,0.09732246]
[1753371744617,1.63837442,119020.0,119010.0,0.26528346]
[1753371744921,0.3032519,119000.0,118990.0,0.0894463]
[1753371745116,1.3823508,119000.0,118990.0,0.2574275]
[1753371745421,1.0336086,119000.0,118990.0,0.2154312]
[1753371745721,1.4510708,119000.0,118990.0,0.2154312]
[1753371745921,1.4510708,119000.0,118990.0,0.07351837]
[1753371746321,1.4510708,119000.0,118990.0,0.24150757]
[1753371746516,1.4510708,119000.0,118990.0,0.07351837]
[1753371747411,1.4510708,119000.0,118990.0,0.02606837]
[1753371747616,1.4510708,119000.0,118990.0,0.001]
[1753371747821,1.4510708,119000.0,118990.0,0.06841257]
[1753371748112,1.57683247,119000.0,118990.0,0.001]
[1753371749222,1.57683247,119000.0,118990.0,0.02718121]
[1753371749416,1.15937027,119000.0,118990.0,0.001]
[1753371749620,1.74490447,119000.0,118990.0,0.001]
[1753371750324,0.2171192,118990.0,118980.0,0.09323694]
[1753371750626,0.2858533,118980.0,118970.0,0.2574671]
[1753371750822,1.3229955,118980.0,118970.0,0.04745]
[1753371751024,1.3229955,118980.0,118960.0,0.2799405]
[1753371751025,0.1680174,118970.0,118960.0,0.2799405]
[1753371751222,0.7033296,118970.0,118960.0,0.04745]
[1753371751626,0.7033296,118970.0,118960.0,0.2154816]
[1753371752324,0.7033296,118970.0,118960.0,0.2184816]
[1753371752520,0.7033296,118970.0,118960.0,0.28617657]
[1753371753028,0.7033296,118970.0,118960.0,0.31217331]
[1753371753429,0.7033296,118970.0,118960.0,0.31417331]
[1753371754127,0.2858674,118970.0,118960.0,0.31417331]
[1753371754325,0.7033296,118970.0,118960.0,0.14614171]
[1753371756928,0.2858674,118970.0,118960.0,0.31417311]
[1753371757124,0.2858674,118970.0,118960.0,0.64455311]
[1753371757330,0.9055474,118970.0,118960.0,0.64455311]
[1753371759032,1.3230096,118970.0,118960.0,0.57349311]
[1753371759331,0.9083074,118970.0,118960.0,0.57349311]
[1753371759733,0.9083074,118970.0,118960.0,0.64313311]
[1753371759930,0.2886274,118970.0,118960.0,0.64313311]
[1753371760131,0.9082674,118970.0,118960.0,0.64313311]
[1753371761534,1.3257296,118970.0,118960.0,0.64313311]
[1753371761734,1.3257296,118970.0,118960.0,0.47510171]
[1753371761934,1.3257296,118970.0,118960.0,0.35899171]
[1753371762434,0.9082674,118970.0,118960.0,0.35899171]
[1753371762733,1.3257296,118970.0,118960.0,0.52702311]
[1753371763828,0.9082674,118970.0,118960.0,0.52702311]
[1753371764024,0.9082674,118970.0,118960.0,0.59666311]
[1753371764229,0.9082674,118970.0,118960.0,0.31417311]
[1753371764424,1.3257296,118970.0,118960.0,0.31417311]
[1753371765831,1.3257296,118970.0,118960.0,0.14614171]
[1753371766732,1.3257296,118970.0,118960.0,0.53009311]
[1753371766932,1.3257296,118970.0,118960.0,0.64487311]
[1753371767636,0.9082674,118970.0,118960.0,0.64487311]
[1753371768633,0.11785,118970.0,118960.0,1.06233531]
[1753371768940,0.66869,118970.0,118960.0,1.06233531]
[1753371769138,0.2847384,118980.0,118970.0,0.3198673]
[1753371769435,0.8350684,118980.0,118970.0,0.9623895]
[1753371769638,0.61956,118980.0,118970.0,0.9623895]
[1753371770526,0.2372316,118990.0,118980.0,0.5449132]
[1753371770730,0.8567516,118990.0,118980.0,0.5449132]
[1753371771130,0.9042516,118990.0,118980.0,0.5449132]
[1753371771532,0.9035816,118990.0,118980.0,0.5449132]
[1753371772940,0.2847316,118990.0,118980.0,0.5449132]
[1753371773141,0.7874816,118990.0,118980.0,0.56399664]
[1753371773834,0.9042116,118990.0,118980.0,0.56399664]
[1753371774036,0.92357055,118990.0,118980.0,0.56399664]
[1753371774436,0.92357576,118990.0,118980.0,0.56399664]
[1753371775342,0.9042116,118990.0,118980.0,0.56399664]
[1753371775544,0.9235794,118990.0,118980.0,0.56399664]
[1753371775843,0.9042116,118990.0,118980.0,0.56399664]
[1753371776044,0.92357904,118990.0,118980.0,0.56399664]
[1753371776540,0.92465904,118990.0,118980.0,0.56399664]
[1753371777044,1.34212124,118990.0,118980.0,0.56399664]
[1753371778541,1.34212124,118990.0,118980.0,0.07849]
[1753371778749,1.34212124,118990.0,118980.0,0.04621]
[1753371779543,0.92465904,118990.0,118980.0,0.04621]
[1753371779747,1.34212124,118990.0,118980.0,0.2142132]
[1753371782047,1.34212124,118990.0,118980.0,0.3234232]
[1753371782248,1.3227538,118990.0,118980.0,0.3234232]
[1753371782642,1.3227538,118990.0,118980.0,0.2142132]
[1753371782944,0.9052916,118990.0,118980.0,0.04621]
[1753371783143,1.3227538,118990.0,118980.0,0.04621]
[1753371783347,1.3227538,118990.0,118980.0,0.2142132]
[1753371784640,0.9052916,118990.0,118980.0,0.2142132]
[1753371784839,1.3227538,118990.0,118980.0,0.2142132]
[1753371785241,1.26140793,118990.0,118980.0,0.3234232]
[1753371785438,1.26140793,118990.0,118980.0,0.3557032]
[1753371785851,0.9052916,118990.0,118980.0,0.3557032]
[1753371786051,1.26140793,118990.0,118980.0,0.4301332]
[1753371787650,1.26096793,118990.0,118980.0,0.5449132]
[1753371787850,0.9048516,118990.0,118980.0,0.5449132]
[1753371788042,1.26096793,118990.0,118980.0,0.5449132]
[1753371788553,0.9048516,118990.0,118980.0,0.5449132]
[1753371788741,1.26096793,118990.0,118980.0,0.5449132]
[1753371789649,0.9048516,118990.0,118980.0,0.5449132]
[1753371789851,1.26096793,118990.0,118980.0,0.5449132]
[1753371791656,0.9048516,118990.0,118980.0,0.5449132]
[1753371791858,1.26096793,118990.0,118980.0,0.5449132]
[1753371794752,1.26096793,118990.0,118980.0,0.26213]
[1753371794953,0.2909231,118980.0,118970.0,0.10538777]
[1753371795258,0.2909372,118970.0,118960.0,0.30689311]
[1753371795457,1.26585353,118970.0,118960.0,0.30689311]
[1753371795657,1.26585353,118970.0,118960.0,0.36734621]
[1753371795854,1.26585353,118970.0,118960.0,0.19931481]
[1753371796157,1.26585353,118970.0,118960.0,0.36734621]
[1753371796353,1.26585353,118970.0,118960.0,0.30689311]
[1753371797146,1.26585353,118970.0,118960.0,0.13886171]
[1753371797347,1.26585353,118970.0,118960.0,0.14186171]
[1753371797552,0.9097372,118970.0,118960.0,0.30989311]
[1753371797747,1.26585353,118970.0,118960.0,0.14186171]
[1753371797953,1.748563,118970.0,118960.0,0.09669171]
[1753371798153,0.2909514,118960.0,118950.0,0.1056231]
[1753371798357,1.00318406,118960.0,118950.0,0.1056231]
[1753371798555,1.1297772,118960.0,118950.0,0.04517]
[1753371798956,1.1297772,118960.0,118950.0,0.2132155]
[1753371799156,0.77366087,118960.0,118950.0,0.2132155]
[1753371799353,0.77366087,118960.0,118950.0,0.2172155]
[1753371800658,0.77366087,118960.0,118950.0,0.32835279]
[1753371801361,0.77366087,118960.0,118950.0,0.16030729]
[1753371801562,1.1297772,118960.0,118950.0,0.16030729]
[1753371801760,1.1297772,118960.0,118950.0,0.11513729]
[1753371802261,1.1297772,118960.0,118950.0,0.04681496]
[1753371802660,1.1297772,118960.0,118950.0,0.04981496]
[1753371803760,1.1297772,118960.0,118950.0,0.007]
[1753371803953,0.3250732,118940.0,118930.0,0.1056231]
[1753371804152,1.43372533,118940.0,118930.0,0.0865093]
[1753371804357,1.56019767,118940.0,118930.0,0.0865093]
[1753371804563,1.57743737,118940.0,118930.0,0.1533837]
[1753371804762,1.57743737,118940.0,118930.0,0.04517]
[1753371805164,1.57743737,118940.0,118930.0,0.04817]
[1753371805358,1.57743737,118940.0,118930.0,0.003]
[1753371805553,1.57743737,118940.0,118930.0,0.005]
[1753371806657,1.22132104,118940.0,118930.0,0.005]
[1753371806965,1.57743737,118940.0,118930.0,0.2182437]
[1753371807153,1.57743737,118940.0,118930.0,0.05017]
[1753371809257,1.57743737,118940.0,118930.0,0.2182438]
[1753371809459,1.13724524,118940.0,118930.0,0.5479238]
[1753371809762,1.49336157,118940.0,118930.0,0.5479238]
[1753371811266,1.55488635,118940.0,118930.0,0.5479238]
[1753371812465,1.55480635,118940.0,118930.0,0.5479238]
[1753371813069,1.09510734,118940.0,118930.0,0.5479238]
[1753371813372,0.26663204,118940.0,118930.0,0.5479238]
[1753371813573,0.6855797,118940.0,118930.0,0.5479238]
[1753371813771,0.8536393,118940.0,118930.0,0.5479238]
[1753371814671,0.9266193,118940.0,118930.0,0.5479238]
[1753371815371,0.8536393,118940.0,118930.0,0.5479238]
[1753371815872,0.0172397,118940.0,118930.0,0.96556491]
[1753371816072,0.3749793,118960.0,118950.0,0.3207455]
[1753371816275,0.9092807,118960.0,118950.0,0.5428955]
[1753371817272,0.9112807,118960.0,118950.0,0.5428955]
[1753371818472,0.9112407,118960.0,118950.0,0.5428955]
[1753371818770,0.2929607,118960.0,118950.0,0.5428955]
[1753371818975,0.9111607,118960.0,118950.0,0.5428955]
[1753371819174,0.2929607,118960.0,118950.0,0.5428955]
[1753371819475,0.9111607,118960.0,118950.0,0.5428955]
[1753371820278,0.2929607,118960.0,118950.0,0.5428955]
[1753371820479,0.9111207,118960.0,118950.0,0.5428955]
[1753371821366,0.9110807,118960.0,118950.0,0.5428955]
[1753371822079,0.2929607,118960.0,118950.0,0.5428955]
[1753371822280,0.9110007,118960.0,118950.0,0.5428955]
[1753371825482,1.32864181,118960.0,118950.0,0.5428955]
[1753371825785,0.9110007,118960.0,118950.0,0.5428955]
[1753371826582,1.32864181,118960.0,118950.0,0.5428955]
[1753371827392,0.9110007,118960.0,118950.0,0.5428955]
[1753371828593,0.9110007,118960.0,118950.0,0.4733955]
[1753371829088,0.9110007,118960.0,118950.0,0.5463155]
[1753371829483,1.32864181,118960.0,118950.0,0.25804]
[1753371829685,1.32864181,118960.0,118950.0,0.04517]
[1753371829887,0.2175455,118950.0,118940.0,0.2157455]
[1753371830082,0.72053174,118950.0,118940.0,0.04769]
[1753371830399,0.2859496,118940.0,118930.0,0.2782168]
[1753371830692,1.32123071,118940.0,118930.0,0.1101431]
[1753371830890,1.32123071,118940.0,118930.0,0.2782168]
[1753371831299,1.32123071,118940.0,118930.0,0.2177637]
[1753371831300,1.26000386,118940.0,118930.0,0.2177637]
[1753371831494,1.26000386,118940.0,118930.0,0.2157637]
[1753371831694,1.26000386,118940.0,118930.0,0.04769]
[1753371831986,1.38632194,118940.0,118930.0,0.002]
[1753371832490,1.38632194,118940.0,118930.0,0.003]
[1753371833193,0.2175737,118930.0,118920.0,0.12137616]
[1753371833494,0.76920149,118930.0,118920.0,0.12137616]
[1753371833896,0.76920149,118930.0,118920.0,0.10861306]
[1753371834597,0.76920149,118930.0,118920.0,0.10961306]
[1753371836693,0.76920149,118930.0,118920.0,0.27770096]
[1753371838198,0.76920149,118930.0,118920.0,0.17006616]
[1753371838800,0.76920149,118930.0,118920.0,0.10961306]
[1753371838995,0.76920149,118930.0,118920.0,0.27770096]
[1753371839298,0.76920149,118930.0,118920.0,0.10961306]
[1753371839899,0.76920149,118930.0,118920.0,0.27770096]
[1753371841588,0.76920149,118930.0,118920.0,0.10961306]
[1753371842194,0.76920149,118930.0,118920.0,0.27770096]
[1753371842599,0.76920149,118930.0,118920.0,0.06192306]
[1753371842901,0.78610115,118930.0,118920.0,0.042889]
[1753371843291,1.14251541,118930.0,118920.0,0.042889]
[1753371843488,1.14251541,118930.0,118920.0,0.001]
[1753371843903,2.57041141,118930.0,118920.0,0.001]
[1753371844201,0.2859779,118920.0,118910.0,0.04769]
[1753371844396,1.61596642,118920.0,118910.0,0.04769]
[1753371844590,0.217602,118910.0,118900.0,0.2998535]
[1753371844902,0.64240626,118910.0,118900.0,0.36658967]
[1753371845502,0.64240626,118910.0,118900.0,0.57014967]
[1753371846196,0.64240626,118910.0,118900.0,0.64306967]
[1753371846393,0.64240626,118910.0,118900.0,0.69118967]
[1753371846795,0.64240626,118910.0,118900.0,0.69318967]
[1753371846994,0.64240626,118910.0,118900.0,0.62026967]
[1753371847195,0.64240626,118910.0,118900.0,0.66214799]
[1753371847404,0.64240626,118910.0,118900.0,0.58009329]
[1753371847605,0.64240626,118910.0,118900.0,0.53197329]
[1753371848601,0.76866241,118910.0,118900.0,0.53197329]
[1753371848799,0.76866241,118910.0,118900.0,0.26168452]
[1753371849003,0.76866241,118910.0,118900.0,0.36505452]
[1753371850901,0.78594707,118910.0,118900.0,0.39641452]
[1753371851506,0.78594707,118910.0,118900.0,0.46543452]
[1753371851706,0.92852281,118910.0,118900.0,0.93653878]